bitfinex-derivatives/quotes_SOLF0:USTF0_20250428
["timestamp","ask_amount","ask_price","bid_price","bid_amount"]
[1745836489010,6.558,152.44,152.38,6.5601]
[1745836489209,4.133,152.5,152.38,6.5601]
[1745836489408,6.558,152.44,152.38,6.5601]
[1745836489613,4.133,152.5,152.38,6.5601]
[1745836489911,24.31441901,152.49,152.27,361.0]
[1745836490110,24.31441901,152.48,152.27,361.0]
[1745836490411,4.59441901,152.47,152.35,6.5612]
[1745836490614,6.5596,152.4,152.27,361.0]
[1745836490913,19.72,152.48,152.34,6.5618]
[1745836491114,6.5602,152.39,152.26,11.6535]
[1745836491313,6.5602,152.39,152.35,6.5612]
[1745836492015,6.5595,152.4,152.36,6.561]
[1745836492216,19.72,152.47,152.26,11.6535]
[1745836492514,6.5606,152.38,152.34,6.5616]
[1745836493118,6.5606,152.38,152.35,6.5615]
[1745836493320,6.5606,152.38,152.26,11.6535]
[1745836493516,6.5614,152.36,152.26,11.6535]
[1745836493815,19.72,152.45,152.33,6.5623]
[1745836494017,4.59588526,152.44,152.27,13.1297]
[1745836494215,472.4,152.46,152.27,13.1297]
[1745836494518,6.5596,152.4,152.27,13.1297]
[1745836494721,472.4,152.46,152.28,13.129]
[1745836495021,4.133,152.5,152.29,1.19389166]
[1745836495319,4.59437023,152.49,152.3,1.19389166]
[1745836495520,4.133,152.5,152.3,1.19389166]
[1745836495719,4.133,152.5,152.4,6.5591]
[1745836495918,6.5576,152.45,152.4,6.5591]
[1745836496115,4.133,152.5,152.31,13.1264]
[1745836496416,4.133,152.5,152.32,14.31840144]
[1745836496619,6.5565,152.47,152.33,5.02770144]
[1745836496815,6.5565,152.47,152.34,5.03910144]
[1745836497016,0.3525,152.53,152.35,3.8335]
[1745836497217,4.59093601,152.52,152.42,6.5582]
[1745836497412,4.59093601,152.51,152.35,476.1735]
[1745836497612,4.58976895,152.5,152.35,476.1735]
[1745836497817,0.3525,152.53,152.35,476.1735]
[1745836498021,4.58992145,152.52,152.35,476.1735]
[1745836498221,6.5592,152.41,152.37,6.5603]
[1745836498419,19.72,152.51,152.35,3.8335]
[1745836498622,19.72,152.49,152.35,3.8335]
[1745836498824,17.70328777,152.48,152.37,6.5606]
[1745836499014,4.59138777,152.47,152.37,6.5606]
[1745836499214,6.5579,152.44,152.35,3.8335]
[1745836499927,6.558,152.43,152.39,6.5593]
[1745836500125,4.09,152.47,152.35,3.8335]
[1745836500930,6.5585,152.42,152.38,6.5599]
[1745836501225,4.09,152.47,152.35,3.8335]
[1745836501426,6.5569,152.46,152.35,3.8335]
[1745836502021,13.4601,152.53,152.35,3.8335]
[1745836502225,4.58834114,152.52,152.35,3.8335]
[1745836502422,4.58834114,152.51,152.35,3.8335]
[1745836502626,4.58834114,152.5,152.35,3.8335]
[1745836502823,13.4601,152.53,152.35,3.8335]
[1745836503028,19.72,152.5,152.19,30.64083933]
[1745836503226,19.72,152.48,152.23,7.5732]
[1745836503420,19.72,152.37,152.23,3.7785]
[1745836503626,19.72,152.35,152.19,30.64083933]
[1745836503827,19.72,152.33,152.19,30.64083933]
[1745836504129,19.72,152.31,152.19,30.64083933]
[1745836504328,24.31564267,152.3,152.19,30.64083933]
[1745836504624,6.5676,152.21,152.19,24.40983933]
[1745836504824,19.72,152.29,152.17,61.28167868]
[1745836505024,19.72,152.27,152.17,61.28167868]
[1745836505231,19.72,152.23,152.14,153.20419672]
[1745836505432,4.5958491,152.22,152.14,153.20419672]
[1745836505623,4.5958491,152.21,152.14,153.20419672]
[1745836505928,472.3,152.32,152.14,153.20419672]
[1745836506135,472.3,152.32,152.01,13.11430224]
[1745836506136,4.59133387,152.31,152.01,13.11430224]
[1745836506333,6.5662,152.24,152.14,3.9882]
[1745836506533,19.72,152.31,152.14,3.9882]
[1745836506828,6.5653,152.27,152.21,6.5674]
[1745836507036,13.1171,152.42,152.15,3.7412]
[1745836507233,477.10764893,152.41,152.15,7.8552]
[1745836507433,6.5648,152.28,152.22,6.5667]
[1745836507629,6.5648,152.28,152.15,7.8552]
[1745836507630,19.72,152.4,152.15,7.8552]
[1745836507829,19.72,152.38,152.15,7.8552]
[1745836508030,19.72,152.36,152.24,6.566]
[1745836508331,4.58628634,152.35,152.15,7.8552]
[1745836508630,472.52,152.41,152.15,7.8552]
[1745836508631,4.58628634,152.34,152.15,7.8552]
[1745836508936,6.5618,152.35,152.3,6.5636]
[1745836509229,6.5618,152.35,152.19,472.62]
[1745836509432,472.62,152.41,152.19,472.62]
[1745836509633,4.58493995,152.4,152.19,472.62]
[1745836509933,6.5632,152.31,152.19,472.62]
[1745836510138,19.72,152.39,152.19,472.62]
[1745836510435,24.30541718,152.38,152.19,472.62]
[1745836510637,24.30541718,152.37,152.19,472.62]
[1745836510933,24.30541718,152.36,152.19,472.62]
[1745836511134,4.58541718,152.35,152.24,6.5662]
[1745836511636,6.5644,152.29,152.24,6.5662]
[1745836512036,19.72,152.36,152.19,472.62]
[1745836512338,4.5860577,152.35,152.19,472.62]
[1745836512637,4.5860577,152.34,152.19,472.62]
[1745836512833,13.1113,152.49,152.19,472.62]
[1745836513137,4.58580535,152.46,152.2,1.19583824]
[1745836513331,4.58580535,152.45,152.25,13.1314]
[1745836513532,4.58580535,152.44,152.26,11.4413]
[1745836513835,6.5589,152.42,152.27,13.1299]
[1745836514035,472.66,152.47,152.38,6.5599]
[1745836514235,6.5593,152.4,152.26,11.4413]
[1745836514436,492.38,152.47,152.26,11.4413]
[1745836514633,4.5866325,152.46,152.26,11.4413]
[1745836514932,4.5866325,152.45,152.26,11.4413]
[1745836515132,4.5866325,152.44,152.35,6.5612]
[1745836515338,4.5866325,152.43,152.35,6.5612]
[1745836515527,472.66,152.47,152.26,11.4413]
[1745836515733,4.59014486,152.46,152.26,11.4413]
[1745836515934,6.5593,152.41,152.26,11.4413]
[1745836516135,472.66,152.47,152.26,11.4413]
[1745836516438,4.59008292,152.46,152.26,11.4413]
[1745836516634,4.59008292,152.45,152.39,6.5598]
[1745836516835,4.59253869,152.44,152.26,11.4413]
[1745836517033,472.66,152.47,152.26,11.4413]
[1745836517234,6.5582,152.43,152.37,6.5603]
[1745836517434,472.66,152.47,152.26,11.4413]
[1745836517629,4.59462259,152.46,152.26,11.4413]
[1745836517835,6.5588,152.42,152.26,11.4413]
[1745836518234,472.66,152.47,152.26,24.5715]
[1745836518437,4.59509785,152.46,152.26,11.4413]
[1745836518740,4.59509785,152.45,152.27,1.19539831]
[1745836518941,472.66,152.47,152.27,362.19539831]
[1745836519135,4.59770599,152.46,152.28,1.19539831]
[1745836519338,4.59796604,152.45,152.29,472.5]
[1745836519539,6.557,152.46,152.4,6.559]
[1745836519743,4.59756631,152.45,152.4,6.559]
[1745836519938,472.66,152.47,152.29,472.5]
[1745836520240,6.5572,152.45,152.3,1.1948984]
[1745836520441,472.66,152.47,152.3,1.1948984]
[1745836520740,506.46805077,152.55,152.3,1.1948984]
[1745836520938,4.59655557,152.54,152.3,1.1948984]
[1745836521238,24.31655557,152.53,152.29,472.5]
[1745836521440,24.31655557,152.52,152.29,472.5]
[1745836521635,6.5585,152.43,152.38,6.5601]
[1745836522036,6.5585,152.43,152.29,472.5]
[1745836522243,6.5585,152.43,152.38,6.5599]
[1745836522440,19.72,152.54,152.29,472.5]
[1745836522639,24.31730503,152.53,152.29,472.5]
[1745836522840,6.5577,152.44,152.29,472.5]
[1745836523041,6.5577,152.44,152.3,1.19517215]
[1745836523242,473.64205077,152.55,152.31,13.1262]
[1745836523442,4.59638716,152.54,152.32,1.19517215]
[1745836523641,4.59638716,152.53,152.32,1.19517215]
[1745836523844,4.59638716,152.52,152.32,1.19517215]
[1745836524047,4.59638716,152.51,152.32,1.19517215]
[1745836524239,472.5,152.55,152.32,1.19517215]
[1745836524442,4.59453379,152.54,152.32,1.19517215]
[1745836524639,4.59453379,152.53,152.32,1.19517215]
[1745836524842,6.5556,152.49,152.44,6.5575]
[1745836525144,6.5556,152.49,152.35,12.1643]
[1745836525345,6.5549,152.51,152.46,6.5566]
[1745836525843,6.5556,152.49,152.35,12.1643]
[1745836526044,172.33670975,152.58,152.35,12.1643]
[1745836526246,4.59085475,152.57,152.35,373.1643]
[1745836526449,6.5543,152.52,152.47,6.556]
[1745836526646,6.5543,152.52,152.38,13.1201]
[1745836526846,6.5536,152.54,152.49,6.5551]
[1745836527043,19.72,152.62,152.4,13.1183]
[1745836527243,4.58807031,152.61,152.4,13.1183]
[1745836527448,6.554,152.53,152.48,6.5556]
[1745836527639,472.36,152.63,152.4,13.1183]
[1745836527947,4.58635186,152.62,152.49,6.5551]
[1745836528148,4.58635186,152.61,152.4,13.1183]
[1745836528447,6.5558,152.49,152.39,472.28]
[1745836528647,19.72,152.6,152.39,472.28]
[1745836528848,6.5567,152.47,152.43,6.5577]
[1745836529048,19.72,152.58,152.35,25.2871]
[1745836529248,19.72,152.56,152.35,25.2871]
[1745836529446,6.557,152.46,152.42,6.5582]
[1745836529749,19.72,152.56,152.35,25.2871]
[1745836529948,4.58575888,152.55,152.35,25.2871]
[1745836530150,4.58575888,152.54,152.35,25.2871]
[1745836530345,4.58575888,152.53,152.35,25.2871]
[1745836530548,6.5561,152.48,152.44,6.5573]
[1745836530849,6.5561,152.48,152.35,25.2871]
[1745836531052,6.5558,152.49,152.35,25.2871]
[1745836531244,1.14160119,152.59,152.35,12.1643]
[1745836531444,4.58420287,152.58,152.46,6.5565]
[1745836531644,24.30420287,152.57,152.38,472.24]
[1745836531844,4.58420287,152.56,152.38,472.24]
[1745836532041,4.58420287,152.55,152.38,472.24]
[1745836532243,4.58420287,152.54,152.38,472.24]
[1745836532447,4.58420287,152.53,152.38,472.24]
[1745836532647,6.5553,152.5,152.46,6.5567]
[1745836532942,19.72,152.58,152.46,6.5567]
[1745836533250,24.30231976,152.57,152.38,472.24]
[1745836533445,4.58231976,152.56,152.38,472.24]
[1745836533650,6.5549,152.51,152.47,6.5563]
[1745836533849,19.72,152.57,152.38,472.24]
[1745836534049,4.58196897,152.56,152.38,472.24]
[1745836534250,6.5551,152.5,152.46,6.5565]
[1745836534453,6.5551,152.5,152.38,472.24]
[1745836534748,6.5551,152.5,152.46,6.5564]
[1745836534953,19.72,152.58,152.38,472.24]
[1745836535250,24.30093118,152.57,152.38,472.24]
[1745836535451,6.5553,152.5,152.46,6.5565]
[1745836535651,13.1024,152.59,152.38,472.24]
[1745836535853,4.57959034,152.58,152.38,472.24]
[1745836536150,4.57959034,152.57,152.38,472.24]
[1745836536351,13.1024,152.59,152.38,472.24]
[1745836536551,6.5546,152.51,152.47,6.5561]
[1745836537150,13.1024,152.59,152.38,472.24]
[1745836537151,32.8224,152.59,152.45,6.5568]
[1745836537348,32.8241,152.57,152.38,472.24]
[1745836537544,4.57760014,152.56,152.35,373.1643]
[1745836537850,6.5579,152.44,152.41,6.5589]
[1745836538053,19.72,152.55,152.41,6.5589]
[1745836538254,19.72,152.53,152.41,6.5589]
[1745836538451,6.5576,152.45,152.41,6.5589]
[1745836538649,6.5576,152.45,152.42,6.5584]
[1745836539050,19.72,152.53,152.42,6.5584]
[1745836539255,4.57786034,152.52,152.41,6.5588]
[1745836539452,19.72,152.56,152.41,6.5588]
[1745836539652,4.57755765,152.55,152.35,12.1643]
[1745836539854,4.57755765,152.54,152.35,12.1643]
[1745836540150,4.57755765,152.53,152.35,12.1643]
[1745836540349,13.1041,152.57,152.35,12.1643]
[1745836540551,6.5562,152.48,152.35,12.1643]
[1745836540757,19.72,152.59,152.35,12.1643]
[1745836540950,172.33670975,152.6,152.35,12.1643]
[1745836540951,24.29583783,152.58,152.36,1.19405422]
[1745836541256,19.72,152.56,152.43,6.5578]
[1745836541459,4.57583783,152.55,152.43,6.5578]
[1745836541661,6.5561,152.48,152.37,13.121]
[1745836542261,6.5564,152.47,152.44,6.5574]
[1745836542561,19.72,152.57,152.37,13.121]
[1745836542861,6.5563,152.47,152.37,13.121]
[1745836543162,13.1058,152.55,152.35,12.1643]
[1745836543361,24.29692089,152.54,152.35,12.1643]
[1745836543661,6.557,152.46,152.35,12.1643]
[1745836544060,6.5572,152.45,152.41,6.5587]
[1745836544962,6.5577,152.44,152.41,6.5587]
[1745836545261,19.72,152.54,152.41,6.5587]
[1745836545456,6.5573,152.45,152.42,6.5584]
[1745836546160,13.1075,152.53,152.41,6.5587]
[1745836546460,4.57676389,152.52,152.35,12.1643]
[1745836546662,32.8275,152.53,152.35,12.1643]
[1745836546964,4.5776782,152.52,152.35,12.1643]
[1745836547154,32.8275,152.53,152.41,6.5585]
[1745836547460,4.57763904,152.52,152.35,12.1643]
[1745836547661,13.1075,152.53,152.43,6.558]
[1745836547861,4.57745433,152.52,152.43,6.558]
[1745836548060,13.1075,152.53,152.35,12.1643]
[1745836548261,6.5568,152.46,152.35,12.1643]
[1745836549266,6.5565,152.47,152.42,6.5582]
[1745836549565,6.5565,152.47,152.35,12.1643]
[1745836549865,6.5565,152.47,152.42,6.5583]
[1745836550066,6.5568,152.46,152.35,12.1643]
[1745836550464,13.1075,152.53,152.35,12.1643]
[1745836550660,6.557,152.46,152.35,12.1643]
[1745836551264,6.557,152.46,152.42,6.5582]
[1745836552469,6.557,152.46,152.35,12.1643]
[1745836552667,6.5572,152.45,152.35,12.1643]
[1745836552968,491.86,152.55,152.35,12.1643]
[1745836552969,13.1084,152.52,152.35,12.1643]
[1745836553268,4.60242208,152.51,152.35,12.1643]
[1745836553465,24.32242208,152.5,152.35,12.1643]
[1745836553763,19.72,152.48,152.35,8.2769]
[1745836554066,6.5611,152.36,152.35,8.2769]
[1745836554262,19.72,152.45,152.25,3.9023]
[1745836554467,6.5626,152.33,152.26,7.9376]
[1745836554862,32.8368,152.43,152.26,7.9376]
[1745836554863,19.72,152.43,152.26,7.9376]
[1745836555061,24.33461534,152.42,152.26,7.9376]
[1745836555260,17.73261534,152.41,152.26,7.9376]
[1745836555472,4.61461534,152.4,152.26,7.9376]
[1745836555767,4.61461534,152.39,152.26,7.9376]
[1745836555967,4.61461534,152.38,152.26,7.9376]
[1745836556360,4.61461534,152.37,152.34,6.5617]
[1745836556563,472.16,152.45,152.26,7.9376]
[1745836556759,4.62189388,152.44,152.26,7.9376]
[1745836556967,4.62189388,152.43,152.26,7.9376]
[1745836557168,4.62189388,152.42,152.26,7.9376]
[1745836557370,4.62189388,152.41,152.26,7.9376]
[1745836557569,4.62189388,152.4,152.26,7.9376]
[1745836557869,4.62189388,152.39,152.36,6.5607]
[1745836558067,472.16,152.45,152.26,7.9376]
[1745836558269,4.62569601,152.44,152.27,1.19565409]
[1745836558459,4.62569601,152.43,152.26,368.9376]
[1745836558665,4.62569601,152.42,152.26,368.9376]
[1745836558866,91.70077645,152.49,152.26,368.9376]
[1745836559067,4.62698327,152.48,152.27,1.19543094]
[1745836559267,6.5592,152.41,152.36,6.5611]
[1745836559463,91.70077645,152.49,152.36,6.5611]
[1745836559668,4.62781757,152.48,152.36,6.5611]
[1745836559970,6.5593,152.41,152.36,6.5611]
[1745836560167,485.3667,152.54,152.26,368.9376]
[1745836560366,4.62761499,152.52,152.27,473.45459102]
[1745836560566,505.0867,152.54,152.28,1.19459102]
[1745836560766,19.72,152.53,152.31,13.1261]
[1745836560964,6.5581,152.43,152.32,3.9324]
[1745836561266,6.5581,152.43,152.38,6.5599]
[1745836561465,6.5577,152.44,152.32,3.9324]
[1745836561667,13.1084,152.52,152.4,6.559]
[1745836561870,13.1084,152.52,152.32,3.9324]
[1745836562068,472.26,152.54,152.33,13.1247]
[1745836562469,472.26,152.54,152.43,6.558]
[1745836562672,6.5567,152.47,152.43,6.558]
[1745836563071,6.5567,152.47,152.44,6.5575]
[1745836563666,6.5569,152.46,152.43,6.5579]
[1745836564670,6.5565,152.47,152.36,3.9732]
[1745836564873,3.8086,152.53,152.36,3.9732]
[1745836565372,6.5568,152.46,152.37,4.0182]
[1745836565873,3.8086,152.53,152.37,4.0182]
[1745836566674,6.5566,152.47,152.37,4.0182]
[1745836566873,3.8086,152.53,152.37,4.0182]
[1745836567274,3.8086,152.53,152.41,6.5587]
[1745836567675,3.8086,152.53,152.37,4.0182]
[1745836568876,3.8086,152.53,152.44,6.5573]
[1745836569376,6.5567,152.47,152.44,6.5573]
[1745836569579,3.8086,152.53,152.43,6.5578]
[1745836569875,6.5575,152.45,152.37,4.0182]
[1745836570069,6.5575,152.45,152.42,6.5582]
[1745836570272,23.5286,152.53,152.42,6.5582]
[1745836570473,6.557,152.46,152.37,4.0182]
[1745836570671,23.5286,152.53,152.44,6.5576]
[1745836570874,23.5286,152.53,152.37,4.0182]
[1745836571078,6.557,152.46,152.43,6.5577]
[1745836571378,3.8086,152.53,152.37,4.0182]
[1745836571778,6.5568,152.46,152.43,6.5578]
[1745836571975,3.8086,152.53,152.38,13.1204]
[1745836572280,4.51247794,152.52,152.37,4.0182]
[1745836572471,4.51247794,152.51,152.37,4.0182]
[1745836572673,4.51247794,152.5,152.39,13.1195]
[1745836572878,4.51247794,152.49,152.4,3.8732]
[1745836573079,3.8086,152.53,152.4,3.8732]
[1745836573282,6.556,152.48,152.45,6.5569]
[1745836573682,3.8086,152.53,152.45,6.5569]
[1745836573883,6.5558,152.49,152.45,6.5569]
[1745836574783,6.5558,152.49,152.46,6.5567]
[1745836574981,6.5558,152.49,152.4,3.8732]
[1745836575177,6.5552,152.5,152.4,3.8732]
[1745836575379,3.8086,152.53,152.4,3.8732]
[1745836575684,4.51311073,152.52,152.4,3.8732]
[1745836575983,4.51306382,152.51,152.4,3.8732]
[1745836576181,4.51306382,152.5,152.4,3.8732]
[1745836576482,3.8275,152.58,152.41,13.1178]
[1745836576683,6.5544,152.52,152.41,13.1178]
[1745836576884,3.8275,152.58,152.41,13.1178]
[1745836577183,4.51238744,152.57,152.42,13.1169]
[1745836577375,4.51238744,152.56,152.4,3.8732]
[1745836577580,4.51238744,152.55,152.41,1.1935448]
[1745836577778,6.554,152.53,152.43,13.1161]
[1745836577983,6.554,152.53,152.49,6.5551]
[1745836578180,3.8275,152.58,152.44,3.8975]
[1745836578385,6.555,152.51,152.47,6.5561]
[1745836578580,4.51087111,152.5,152.44,3.8975]
[1745836578785,6.5551,152.5,152.44,3.8975]
[1745836579785,23.5475,152.58,152.47,6.5561]
[1745836579981,4.51052436,152.57,152.44,3.8975]
[1745836580186,6.5545,152.52,152.44,3.8975]
[1745836580383,4.51052436,152.51,152.44,3.8975]
[1745836580682,6.5535,152.54,152.44,3.8975]
[1745836580986,6.5535,152.54,152.45,3.9147]
[1745836580987,4.51005065,152.53,152.45,3.9147]
[1745836581287,6.5537,152.53,152.45,3.9147]
[1745836581484,6.5537,152.53,152.49,6.5551]
[1745836581786,3.8275,152.58,152.45,3.9147]
[1745836582083,4.50926472,152.57,152.45,3.9147]
[1745836582289,4.50926472,152.56,152.45,3.9147]
[1745836582486,6.5545,152.52,152.49,6.5554]
[1745836583888,6.5548,152.51,152.48,6.5558]
[1745836584084,23.5475,152.58,152.44,3.8975]
[1745836584288,19.72,152.56,152.44,3.8975]
[1745836584487,24.22823631,152.55,152.4,3.8732]
[1745836584687,24.22823631,152.54,152.4,3.8732]
[1745836584887,4.50823631,152.53,152.43,6.558]
[1745836585185,4.50823631,152.52,152.4,3.8732]
[1745836585389,4.50823631,152.51,152.41,6.5587]
[1745836585583,4.50823631,152.5,152.41,6.5587]
[1745836585781,4.50823631,152.49,152.41,6.5587]
[1745836585987,4.50823631,152.48,152.41,6.5587]
[1745836586287,4.50823631,152.47,152.41,6.5587]
[1745836586487,4.50823631,152.46,152.41,6.5587]
[1745836586688,6.5576,152.44,152.41,6.5588]
[1745836586989,19.72,152.57,152.4,3.8732]
[1745836587191,6.5566,152.47,152.4,3.8732]
[1745836587389,16.9314,152.58,152.4,3.8732]
[1745836587593,6.5547,152.51,152.4,3.8732]
[1745836587990,16.9314,152.58,152.4,3.8732]
[1745836588189,6.5547,152.51,152.4,3.8732]
[1745836588390,91.70077645,152.62,152.4,3.8732]
[1745836588694,3.8508,152.59,152.5,6.5548]
[1745836588891,6.5536,152.54,152.5,6.5548]
[1745836589293,3.8508,152.59,152.49,6.5553]
[1745836589490,3.8508,152.59,152.41,13.1178]
[1745836589690,4.38399191,152.58,152.45,6.5569]
[1745836589891,4.38399191,152.57,152.4,3.8732]
[1745836590189,4.38399191,152.56,152.4,3.8732]
[1745836590393,24.10399191,152.55,152.4,3.8732]
[1745836590596,4.38399191,152.54,152.4,3.8732]
[1745836590797,4.38399191,152.53,152.4,10.4323]
[1745836591095,6.5578,152.44,152.4,10.4323]
[1745836591395,19.72,152.53,152.4,3.8732]
[1745836591596,6.5583,152.43,152.4,3.8732]
[1745836591800,23.6231,152.51,152.37,3.8852]
[1745836591987,24.10714931,152.5,152.37,3.8852]
[1745836592194,19.72,152.48,152.35,4.0428]
[1745836592492,13.1138,152.46,152.35,4.0428]
[1745836592788,6.561,152.37,152.35,4.0428]
[1745836593498,13.1138,152.46,152.35,4.0428]
[1745836593699,4.38595936,152.45,152.35,4.0428]
[1745836593902,6.5598,152.39,152.35,4.0428]
[1745836594199,6.5598,152.39,152.35,10.604]
[1745836594499,6.5598,152.39,152.35,4.0428]
[1745836594701,19.72,152.5,152.32,3.856]
[1745836594900,24.10483228,152.49,152.33,4.0428]
[1745836595096,24.10483228,152.48,152.33,4.0428]
[1745836595297,4.38483228,152.47,152.33,4.0428]
[1745836595496,4.38483228,152.46,152.33,4.0428]
[1745836595696,6.5598,152.39,152.35,6.5612]
[1745836595901,19.72,152.48,152.33,4.0428]
[1745836596200,4.38375434,152.47,152.33,4.0428]
[1745836596401,4.38375434,152.46,152.33,4.0428]
[1745836596600,4.38375434,152.45,152.33,4.0428]
[1745836596800,4.38375434,152.44,152.33,4.0428]
[1745836597001,508.7726,152.51,152.33,4.0428]
[1745836597304,4.38156463,152.5,152.33,4.0428]
[1745836597499,4.38156463,152.49,152.33,4.0428]
[1745836597804,4.38156463,152.48,152.39,6.5598]
[1745836598009,4.38156463,152.47,152.33,4.0428]
[1745836598234,4.38156463,152.46,152.33,4.0428]
[1745836598433,6.5597,152.4,152.36,6.5609]
[1745836598634,13.1105,152.5,152.36,6.5609]
[1745836598832,4.38140715,152.49,152.33,4.0428]
[1745836599031,4.38140715,152.48,152.37,6.5603]
[1745836599233,4.38140715,152.47,152.33,4.0428]
[1745836599522,4.38140715,152.46,152.36,6.5609]
[1745836599726,4.38140715,152.45,152.33,4.0428]
[1745836599952,13.1105,152.5,152.33,4.0428]
[1745836600119,6.5583,152.43,152.39,6.5595]
[1745836601112,13.1105,152.5,152.39,6.5595]
[1745836601311,4.38568927,152.49,152.39,6.5595]
[1745836601508,4.38568927,152.48,152.33,4.0428]
[1745836601803,4.38568927,152.47,152.33,4.0428]
[1745836602016,4.38568927,152.46,152.38,6.5599]
[1745836602308,4.38568927,152.45,152.33,4.0428]
[1745836602612,6.5579,152.44,152.4,6.559]
[1745836602906,6.5579,152.44,152.33,4.0428]
[1745836603208,6.5579,152.44,152.4,6.559]
[1745836603408,475.9431,152.51,152.33,4.0428]
[1745836603605,4.38715798,152.5,152.33,4.0428]
[1745836603808,4.38715798,152.49,152.33,4.0428]
[1745836604009,4.38715798,152.48,152.33,4.0428]
[1745836604209,4.38715798,152.47,152.33,4.0428]
[1745836604412,4.38715798,152.46,152.33,4.0428]
[1745836604612,4.38715798,152.45,152.33,4.0428]
[1745836604810,4.38715798,152.44,152.33,4.0428]
[1745836605011,4.38715798,152.43,152.35,6.5613]
[1745836605213,6.5597,152.4,152.35,6.5613]
[1745836605712,6.5597,152.4,152.36,6.5609]
[1745836606211,19.72,152.48,152.33,4.0428]
[1745836606511,4.38757058,152.47,152.33,4.0428]
[1745836606712,6.56,152.39,152.33,4.0428]
[1745836606913,6.56,152.39,152.35,6.5613]
[1745836607313,6.56,152.39,152.33,4.0428]
[1745836607713,6.5595,152.4,152.33,4.0428]
[1745836608212,6.5595,152.4,152.36,6.5607]
[1745836608913,6.5595,152.4,152.33,4.0428]
[1745836609415,6.5598,152.39,152.36,6.5608]
[1745836609712,13.113,152.47,152.33,4.0428]
[1745836609915,6.5601,152.39,152.35,6.5614]
[1745836610413,13.113,152.47,152.35,6.5614]
[1745836610612,6.56,152.39,152.35,6.5614]
[1745836610817,6.56,152.39,152.36,6.5609]
[1745836611017,6.5598,152.4,152.33,4.0428]
[1745836611216,13.113,152.47,152.36,6.5608]
[1745836611417,4.38447434,152.46,152.36,6.5608]
[1745836611715,6.5598,152.39,152.33,4.0428]
[1745836612415,6.5598,152.39,152.36,6.5609]
[1745836615623,6.5595,152.4,152.37,6.5605]
[1745836615824,13.113,152.47,152.37,6.5605]
[1745836616025,4.38292175,152.46,152.33,4.0428]
[1745836616217,4.38292175,152.45,152.33,4.0428]
[1745836616420,6.56,152.39,152.36,6.5608]
[1745836616820,6.56,152.39,152.33,4.0428]
[1745836617225,6.5595,152.4,152.33,4.0428]
[1745836617425,13.113,152.47,152.33,4.0428]
[1745836617728,4.38262923,152.46,152.33,4.0428]
[1745836618025,4.38262923,152.45,152.33,4.0428]
[1745836618225,4.38262923,152.44,152.33,4.0428]
[1745836618421,8.34972923,152.43,152.33,4.0428]
[1745836618621,4.38262923,152.42,152.33,4.0428]
[1745836618818,3.9671,152.43,152.33,4.0428]
[1745836619630,6.5597,152.4,152.37,6.5606]
[1745836619926,13.113,152.47,152.33,4.0428]
[1745836620222,4.3823702,152.46,152.38,6.5599]
[1745836620526,4.3823702,152.45,152.38,6.5599]
[1745836620729,6.5592,152.41,152.33,4.0428]
[1745836621125,13.113,152.47,152.33,4.0428]
[1745836621325,4.38254685,152.46,152.33,4.0428]
[1745836621526,4.38254685,152.45,152.33,4.0428]
[1745836621824,4.38254685,152.44,152.33,4.0428]
[1745836622025,4.38304654,152.43,152.32,3.856]
[1745836622228,13.1136,152.46,152.32,3.856]
[1745836622429,4.38433572,152.45,152.32,3.856]
[1745836622629,4.38433572,152.44,152.32,3.856]
[1745836622831,4.38433572,152.43,152.32,3.856]